[Event "Fredericia WIM 2019"]
[Site "Fredericia"]
[Date "2019.06.01"]
[Round "7.10"]
[White "Stolberg-Rohr, Thomine"]
[Black "Kakulidis, Ellen"]
[Result "1/2-1/2"]
[ECO "C65"]
[WhiteElo "2025"]
[BlackElo "2014"]
[Annotator "NA"]
[PlyCount "84"]
[EventDate "2019.05.29"]
[EventType "tourn"]
[EventCountry "DEN"]
[SourceTitle "playchess.com"]
[Source "ChessBase"]
[SourceQuality "1"]
[TimeControl "40/5400+30:1800+30"]

1. e4 {[%emt 0:00:00]} e5 {[%emt 0:00:00]} 2. Nf3 {[%emt 0:00:00]} Nc6 {[%emt 0:00:00]} 3. Bb5 {[%emt 0:00:02]} Nf6 {[%emt 0:00:05]} 4. d3 {[%emt 0:02:31]} d6 {[%emt 0:00:55]} 5. O-O {[%emt 0:01:50]} Be7 {[%emt 0:00:09]} 6. c3 {[%emt 0:02:15]} O-O {[%emt 0:00:42]} 7. h3 {[%emt 0:01:42]} a6 {[%emt 0:00:47]} 8. Ba4 {[%emt 0:00:11]} b5 {[%emt 0:04:50]} 9. Bc2 {[%emt 0:00:41]} Re8 {[%emt 0:02:48]} 10. Nbd2 {[%emt 0:02:45]} Bf8 {[%emt 0:05:46]} 11. Re1 {[%emt 0:00:24]} d5 {[%emt 0:05:07]} 12. exd5 {[%emt 0:03:43]} Qxd5 {[%emt 0:02:04]} 13. Ng5 {[%emt 0:04:36]} Nd8 {[%emt 0:06:59]} 14. Nde4 {[%emt 0:14:49]} Nxe4 {[%emt 0:04:54]} 15. Nxe4 {[%emt 0:00:51]} Qc6 {[%emt 0:10:47]} 16. Re3 {[%emt 0:16:32]} Kh8 {[%emt 0:21:52]} 17. Rg3 {[%emt 0:04:32]} g6 {[%emt 0:04:57]} 18. Bg5 {[%emt 0:02:38]} Bg7 {[%emt 0:00:35]} 19. Bb3 {[%emt 0:08:13]} f6 {[%emt 0:02:25]} 20. Bd2 {[%emt 0:01:02]} Be6 {[%emt 0:00:45]} 21. Rf3 {[%emt 0:06:14]} Rf8 {[%emt 0:03:45]} 22. a4 {[%emt 0:05:49]} Bxb3 {[%emt 0:01:19]} 23. Qxb3 {[%emt 0:00:06]} Rb8 {[%emt 0:00:36]} 24. axb5 {[%emt 0:01:16]} axb5 {[%emt 0:01:18]} 25. Be3 {[%emt 0:05:38]} Ne6 {[%emt 0:00:49]} 26. Qb4 {[%emt 0:00:44]} f5 {[%emt 0:01:33]} 27. Nc5 {[%emt 0:01:23]} Nxc5 {[%emt 0:00:28]} 28. Qxc5 {[%emt 0:01:38]} Qxc5 {[%emt 0:02:50]} 29. Bxc5 {[%emt 0:00:04]} Ra8 {[%emt 0:01:05]} 30. Rxa8 {[%emt 0:02:36]} Rxa8 {[%emt 0:00:07]} 31. Re3 {[%emt 0:00:27]} Kg8 {[%emt 0:01:32]} 32. g3 {[%emt 0:02:27]} Bf6 {[%emt 0:01:45]} 33. f4 {[%emt 0:01:08]} exf4 {[%emt 0:01:22]} 34. gxf4 {[%emt 0:00:07]} Kf7 {[%emt 0:00:21]} 35. Kf2 {[%emt 0:00:41]} Ra1 {[%emt 0:01:19]} 36. Re2 {[%emt 0:00:42]} Ra6 {[%emt 0:05:09]} 37. d4 {[%emt 0:02:15]} Re6 {[%emt 0:03:44]} 38. Rxe6 {[%emt 0:00:18]} Kxe6 {[%emt 0:00:02]} 39. Ke3 {[%emt 0:01:14]} Bh4 {[%emt 0:00:51]} 40. b3 {[%emt 0:00:46]} Kd5 {[%emt 0:01:00]} 41. Bb4 {[%emt 0:30:51]} Bf6 {[%emt 0:03:46]} 42. Bc5 {[%emt 0:00:00]} Bh4 {[%emt 0:02:50]} 1/2-1/2

[Event "Fredericia WIM 2019"]
[Site "Fredericia"]
[Date "2019.06.02"]
[Round "8.6"]
[White "Kanakova, Natalie"]
[Black "Nilssen, Ellen Fredericia"]
[Result "0-1"]
[ECO "A06"]
[WhiteElo "2205"]
[BlackElo "2129"]
[Annotator "ChessBase"]
[PlyCount "60"]
[EventDate "2019.05.29"]
[EventType "tourn"]
[EventCountry "DEN"]
[SourceTitle "playchess.com"]
[Source "ChessBase"]
[SourceQuality "1"]
[TimeControl "40/5400+30:1800+30"]

1. Nf3 {[%emt 0:00:00]} d5 {[%emt 0:00:00]} 2. e3 {[%emt 0:00:13]} Nf6 {[%emt 0:00:29]} 3. c4 {[%emt 0:00:12]} c6 {[%emt 0:00:13]} 4. Nc3 {[%emt 0:01:28]} g6 {[%emt 0:00:07]} 5. b3 {[%emt 0:01:03]} Bg7 {[%emt 0:00:08]} 6. Bb2 {[%emt 0:00:08]} O-O {[%emt 0:01:18]} 7. Be2 {[%emt 0:01:06]} Re8 {[%emt 0:06:22]} 8. d4 {[%emt 0:02:51]} Bf5 {[%emt 0:04:33]} 9. O-O {[%emt 0:02:07]} Ne4 {[%emt 0:05:48]} 10. Rc1 {[%emt 0:13:01]} Nd7 {[%emt 0:02:49]} 11. Nh4 {[%emt 0:05:08]} Nxc3 {[%emt 0:03:22]} 12. Bxc3 {[%emt 0:00:09]} Be6 {[%emt 0:00:06]} 13. e4 {[%emt 0:06:21]} f6 {[%emt 0:12:01]} 14. Qd3 {[%emt 0:07:07]} Bf7 {[%emt 0:02:41]} 15. Nf3 {[%emt 0:12:43]} e5 {[%emt 0:05:43]} 16. cxd5 {[%emt 0:07:48]} cxd5 {[%emt 0:00:28]} 17. dxe5 {[%emt 0:00:33]} Nc5 {[%emt 0:03:15]} 18. Qc2 {[%emt 0:07:02]} Nxe4 {[%emt 0:03:47]} 19. Bb5 {[%emt 0:00:35]} Re6 {[%emt 0:03:27]} 20. Nd4 {[%emt 0:06:18]} Rxe5 {[%emt 0:01:48]} 21. f4 {[%emt 0:00:06]} Re7 {[%emt 0:03:33]} 22. f5 {[%emt 0:04:17]} Bh6 {[%emt 0:06:18]} 23. Rce1 {[%emt 0:03:42]} Rc7 {[%emt 0:03:20]} 24. fxg6 {[%emt 0:07:22]} hxg6 {[%emt 0:00:10]} 25. Rf3 {[%emt 0:02:34]} Rac8 {[%emt 0:00:12]} 26. Ne2 {[%emt 0:00:46]} a6 {[%emt 0:05:16]} 27. Rh3 {[%emt 0:04:26]} Bg7 {[%emt 0:02:56]} 28. Qd3 {[%emt 0:02:25]} Nxc3 {[%emt 0:02:20]} 29. Nxc3 {[%emt 0:00:07]} Rxc3 {[%emt 0:00:44]} 30. Qd4 {[%emt 0:01:36]} Rxh3 {[%emt 0:00:39]} 0-1

[Event "Fredericia WIM 2019"]
[Site "Fredericia"]
[Date "2019.06.02"]
[Round "8.7"]
[White "Guindy, Esmat Susanne"]
[Black "Kubicka, Anna"]
[Result "0-1"]
[ECO "A25"]
[WhiteElo "2156"]
[BlackElo "2142"]
[Annotator "ChessBase"]
[PlyCount "77"]
[EventDate "2019.05.29"]
[EventType "tourn"]
[EventCountry "DEN"]
[SourceTitle "playchess.com"]
[Source "ChessBase"]
[SourceQuality "1"]
[TimeControl "40/5400+30:1800+30"]

1. c4 {[%emt 0:00:38]} e5 {[%emt 0:00:00]} 2. g3 {[%emt 0:00:27]} Nc6 {[%emt 0:00:00]} 3. Bg2 {[%emt 0:00:15]} g6 {[%emt 0:00:03]} 4. Nc3 {[%emt 0:00:21]} Bg7 {[%emt 0:00:06]} 5. e3 {[%emt 0:03:21]} d6 {[%emt 0:00:26]} 6. Nge2 {[%emt 0:01:14]} f5 {[%emt 0:01:16]} 7. d3 {[%emt 0:04:42]} Nf6 {[%emt 0:00:08]} 8. O-O {[%emt 0:02:56]} O-O {[%emt 0:00:24]} 9. f4 {[%emt 0:04:21]} Be6 {[%emt 0:04:46]} 10. b3 {[%emt 0:05:32]} Bf7 {[%emt 0:00:52]} 11. fxe5 {[%emt 0:17:53]} dxe5 {[%emt 0:04:03]} 12. Rb1 {[%emt 0:14:48]} Qd7 {[%emt 0:02:41]} 13. d4 {[%emt 0:01:12]} e4 {[%emt 0:05:40]} 14. a3 {[%emt 0:09:47]} Rad8 {[%emt 0:04:21]} 15. Qc2 {[%emt 0:00:22]} Qe7 {[%emt 0:12:50]} 16. Nb5 {[%emt 0:02:44]} a6 {[%emt 0:02:58]} 17. Nbc3 {[%emt 0:00:06]} Ng4 {[%emt 0:00:22]} 18. h3 {[%emt 0:00:57]} Nf6 {[%emt 0:00:58]} 19. Na4 {[%emt 0:00:33]} Nh5 {[%emt 0:07:11]} 20. b4 {[%emt 0:02:59]} Qg5 {[%emt 0:03:19]} 21. Kh2 {[%emt 0:00:43]} Rfe8 {[%emt 0:03:16]} 22. Nc5 {[%emt 0:02:07]} Rb8 {[%emt 0:07:08]} 23. Bd2 {[%emt 0:01:51]} Bf8 {[%emt 0:02:15]} 24. h4 {[%emt 0:01:09]} Qg4 {[%emt 0:06:31]} 25. Be1 {[%emt 0:02:21]} Bd6 {[%emt 0:00:03]} 26. Nf4 {[%emt 0:01:08]} Nxf4 {[%emt 0:02:06]} 27. gxf4 {[%emt 0:00:11]} Be7 {[%emt 0:02:35]} 28. d5 {[%emt 0:02:12]} Na7 {[%emt 0:01:06]} 29. Nd7 {[%emt 0:00:35]} Rbd8 {[%emt 0:00:19]} 30. Ne5 {[%emt 0:00:10]} Qh5 {[%emt 0:00:04]} 31. Rh1 {[%emt 0:04:06]} Bf6 {[%emt 0:00:19]} 32. Nxf7 {[%emt 0:00:15]} Kxf7 {[%emt 0:00:06]} 33. Kg1 {[%emt 0:01:10]} c6 {[%emt 0:01:03]} 34. Qb3 {[%emt 0:02:52]} cxd5 {[%emt 0:01:23]} 35. cxd5 {[%emt 0:00:07]} Rd6 {[%emt 0:01:43]} 36. a4 {[%emt 0:00:36]} Red8 {[%emt 0:03:29]} 37. Rh2 {[%emt 0:01:52]} Qg4 {[%emt 0:03:49]} 38. Kh1 {[%emt 0:01:23]} Qe2 {[%emt 0:02:11]} 39. Bf1 {[%emt 0:00:48]} 0-1

[Event "Fredericia WIM 2019"]
[Site "Fredericia"]
[Date "2019.06.02"]
[Round "8.8"]
[White "Sahl, Sheila Barth"]
[Black "Sucikova, Svetlana"]
[Result "0-1"]
[ECO "B13"]
[WhiteElo "2127"]
[BlackElo "2110"]
[Annotator "ChessBase"]
[PlyCount "94"]
[EventDate "2019.05.29"]
[EventType "tourn"]
[EventCountry "DEN"]
[SourceTitle "playchess.com"]
[Source "ChessBase"]
[SourceQuality "1"]
[TimeControl "40/5400+30:1800+30"]

1. e4 {[%emt 0:00:04]} c6 {[%emt 0:00:00]} 2. d4 {[%emt 0:00:11]} d5 {[%emt 0:00:15]} 3. exd5 {[%emt 0:00:17]} cxd5 {[%emt 0:00:32]} 4. Bd3 {[%emt 0:00:15]} Nc6 {[%emt 0:02:20]} 5. c3 {[%emt 0:00:07]} Nf6 {[%emt 0:01:59]} 6. Bf4 {[%emt 0:00:26]} Bg4 {[%emt 0:00:18]} 7. Qb3 {[%emt 0:00:17]} Qd7 {[%emt 0:01:09]} 8. Nd2 {[%emt 0:00:26]} e6 {[%emt 0:14:56]} 9. h3 {[%emt 0:00:18]} Bh5 {[%emt 0:00:28]} 10. Ngf3 {[%emt 0:00:35]} Bg6 {[%emt 0:05:00]} 11. Bxg6 {[%emt 0:01:01]} hxg6 {[%emt 0:00:41]} 12. Ne5 {[%emt 0:02:30]} Qc8 {[%emt 0:12:19]} 13. O-O {[%emt 0:06:47]} Nd7 {[%emt 0:00:23]} 14. Ndf3 {[%emt 0:03:04]} Be7 {[%emt 0:04:37]} 15. Nd3 {[%emt 0:02:12]} O-O {[%emt 0:00:42]} 16. Rfe1 {[%emt 0:02:56]} Na5 {[%emt 0:00:44]} 17. Qd1 {[%emt 0:09:20]} b6 {[%emt 0:04:31]} 18. Ng5 {[%emt 0:04:20]} Nc4 {[%emt 0:02:20]} 19. Qf3 {[%emt 0:11:28]} Qb7 {[%emt 0:04:02]} 20. h4 {[%emt 0:03:15]} Nf6 {[%emt 0:03:46]} 21. Qh3 {[%emt 0:05:17]} Rae8 {[%emt 0:11:24]} 22. b3 {[%emt 0:11:01]} Nd6 {[%emt 0:01:32]} 23. Ne5 {[%emt 0:00:09]} Nde4 {[%emt 0:08:07]} 24. f3 {[%emt 0:11:13]} Nxc3 {[%emt 0:05:35]} 25. Ngxf7 {[%emt 0:15:01]} Rxf7 {[%emt 0:00:40]} 26. Nxf7 {[%emt 0:00:16]} Kxf7 {[%emt 0:00:14]} 27. Qxe6+ {[%emt 0:00:27]} Kf8 {[%emt 0:00:02]} 28. Qe3 {[%emt 0:04:07]} Bb4 {[%emt 0:01:23]} 29. Be5 {[%emt 0:00:13]} Nb5 {[%emt 0:01:43]} 30. Rec1 {[%emt 0:00:29]} Kg8 {[%emt 0:04:20]} 31. Qd3 {[%emt 0:00:09]} Qd7 {[%emt 0:03:49]} 32. Bxf6 {[%emt 0:03:14]} gxf6 {[%emt 0:01:19]} 33. Qxg6+ {[%emt 0:00:05]} Kf8 {[%emt 0:00:12]} 34. Qxf6+ {[%emt 0:00:14]} Qf7 {[%emt 0:00:07]} 35. Qh8+ {[%emt 0:01:06]} Qg8 {[%emt 0:00:06]} 36. Qh6+ {[%emt 0:00:50]} Qg7 {[%emt 0:00:04]} 37. Qf4+ {[%emt 0:00:58]} Kg8 {[%emt 0:00:33]} 38. Rd1 {[%emt 0:00:26]} Nc3 {[%emt 0:01:28]} 39. Qf5 {[%emt 0:01:28]} Ne2+ {[%emt 0:04:43]} 40. Kf2 {[%emt 0:00:03]} Qg3+ {[%emt 0:00:20]} 41. Kf1 {[%emt 0:30:08]} Qxh4 {[%emt 0:08:09]} 42. Qxd5+ {[%emt 0:00:00]} Kh8 {[%emt 0:00:21]} 43. Qf7 {[%emt 0:00:00]} Ng3+ {[%emt 0:02:06]} 44. Kg1 {[%emt 0:00:00]} Qh1+ {[%emt 0:00:07]} 45. Kf2 {[%emt 0:00:00]} Re2+ {[%emt 0:00:03]} 46. Kxg3 {[%emt 0:00:00]} Qxg2+ {[%emt 0:00:04]} 47. Kh4 {[%emt 0:00:00]} Be7+ {[%emt 0:00:02]} 0-1

[Event "Fredericia WIM 2019"]
[Site "Fredericia"]
[Date "2019.06.02"]
[Round "8.9"]
[White "Kakulidis, Ellen"]
[Black "Keetman, Maaike"]
[Result "0-1"]
[ECO "A45"]
[WhiteElo "2014"]
[BlackElo "2146"]
[Annotator "ChessBase"]
[PlyCount "56"]
[EventDate "2019.05.29"]
[EventType "tourn"]
[EventCountry "DEN"]
[SourceTitle "playchess.com"]
[Source "ChessBase"]
[SourceQuality "1"]
[TimeControl "40/5400+30:1800+30"]

1. d4 {[%emt 0:00:00]} Nf6 {[%emt 0:00:00]} 2. g3 {[%emt 0:00:00]} e6 {[%emt 0:00:05]} 3. Bg2 {[%emt 0:00:00]} d5 {[%emt 0:00:15]} 4. Nf3 {[%emt 0:00:00]} b5 {[%emt 0:00:14]} 5. O-O {[%emt 0:00:19]} Bb7 {[%emt 0:00:05]} 6. Ne5 {[%emt 0:00:38]} Nbd7 {[%emt 0:00:13]} 7. a4 {[%emt 0:04:29]} b4 {[%emt 0:00:52]} 8. c4 {[%emt 0:08:37]} bxc3 {[%emt 0:02:25]} 9. Nxc3 {[%emt 0:00:11]} c5 {[%emt 0:05:15]} 10. Nxd7 {[%emt 0:07:52]} Nxd7 {[%emt 0:05:34]} 11. e4 {[%emt 0:07:23]} cxd4 {[%emt 0:05:07]} 12. exd5 {[%emt 0:15:10]} e5 {[%emt 0:07:48]} 13. Nb5 {[%emt 0:05:09]} Bc5 {[%emt 0:08:10]} 14. Qg4 {[%emt 0:10:31]} Nf6 {[%emt 0:19:02]} 15. Qxg7 {[%emt 0:00:35]} Rg8 {[%emt 0:00:10]} 16. Qh6 {[%emt 0:00:12]} Rg6 {[%emt 0:03:20]} 17. Qd2 {[%emt 0:02:51]} a6 18. b4 {[%emt 0:07:50]} Bb6 {[%emt 0:12:24]} 19. Na3 {[%emt 0:00:21]} Bxd5 {[%emt 0:00:27]} 20. Bxd5 {[%emt 0:01:56]} Qxd5 {[%emt 0:01:09]} 21. Qe2 {[%emt 0:03:36]} d3 {[%emt 0:07:54]} 22. Qa2 {[%emt 0:00:06]} Qf3 {[%emt 0:01:07]} 23. Bb2 {[%emt 0:13:42]} Rxg3+ {[%emt 0:01:36]} 24. hxg3 {[%emt 0:01:13]} Qxg3+ {[%emt 0:00:04]} 25. Kh1 {[%emt 0:00:06]} Qh3+ {[%emt 0:00:23]} 26. Kg1 {[%emt 0:00:05]} Ke7 {[%emt 0:00:52]} 27. Bxe5 {[%emt 0:02:47]} Rg8+ {[%emt 0:00:09]} 28. Bg3 {[%emt 0:00:05]} Rxg3# {[%emt 0:00:04]} 0-1

[Event "Fredericia WIM 2019"]
[Site "Fredericia"]
[Date "2019.06.02"]
[Round "8.10"]
[White "Mayrhuber, Nikola"]
[Black "Stolberg-Rohr, Thomine"]
[Result "1-0"]
[ECO "E01"]
[WhiteElo "1985"]
[BlackElo "2025"]
[Annotator "NA"]
[PlyCount "71"]
[EventDate "2019.05.29"]
[EventType "tourn"]
[EventCountry "DEN"]
[SourceTitle "playchess.com"]
[Source "ChessBase"]
[SourceQuality "1"]
[TimeControl "40/5400+30:1800+30"]

1. d4 {[%emt 0:00:00]} Nf6 {[%emt 0:00:00]} 2. c4 {[%emt 0:00:00]} e6 {[%emt 0:00:00]} 3. g3 {[%emt 0:00:32]} d5 {[%emt 0:00:42]} 4. Bg2 {[%emt 0:00:07]} Bb4+ {[%emt 0:01:17]} 5. Nd2 {[%emt 0:00:45]} O-O {[%emt 0:01:20]} 6. Ngf3 {[%emt 0:00:22]} dxc4 {[%emt 0:02:44]} 7. Qc2 {[%emt 0:01:10]} Qe7 $146 {[%emt 0:07:54] E04: Open Catalan: 5 Nf3} ({Predecessor:} 7... b5 8. a4 Bb7 9. axb5 a6 10. bxa6 Rxa6 11. Rxa6 Bxa6 12. O-O Nc6 13. Rd1 Nxd4 14. Nxd4 Qxd4 15. Ne4 {1-0 (39) Yu,Y (2760)-Ganguly,S (2652) China 2018}) 8. O-O {[%emt 0:00:20]} c5 {[%emt 0:01:56]} (8... b5 $14) 9. Nxc4 {[%emt 0:03:11]} cxd4 {[%emt 0:03:36]} 10. Nxd4 {[%emt 0:04:34]} e5 {[%emt 0:02:06]} 11. Nb5 {[%emt 0:08:59]} (11. Nf5 $16 Bxf5 12. Qxf5) 11... Na6 {[%emt 0:09:36]} 12. a3 {[%emt 0:01:28]} Bc5 {[%emt 0:28:33]} 13. b4 {[%emt 0:00:39]} Bb6 {[%emt 0:02:32]} 14. Bb2 {[%emt 0:02:03]} Be6 {[%emt 0:03:07]} 15. Nxb6 {[%emt 0:06:05]} axb6 {[%emt 0:00:13]} 16. Bxe5 {[%emt 0:00:43]} Rac8 {[%emt 0:03:12]} 17. Qb2 {[%emt 0:00:59]} Bc4 {[%emt 0:05:19]} 18. Nd6 {[%emt 0:05:34]} Rc7 {[%emt 0:02:21]} 19. Bxf6 {[%emt 0:15:19]} gxf6 {[%emt 0:01:34]} 20. Ne4 {[%emt 0:01:01]} Kg7 {[%emt 0:02:13]} 21. Rfd1 {[%emt 0:04:34]} Nb8 {[%emt 0:02:42]} 22. Rd6 {[%emt 0:07:03]} Qe5 {[%emt 0:03:01]} 23. Qxe5 {[%emt 0:07:15]} fxe5 {[%emt 0:00:05]} 24. Rxb6 {[%emt 0:00:23]} Nd7 {[%emt 0:00:37]} 25. Rd6 {[%emt 0:02:46]} Bxe2 {[%emt 0:00:25]} 26. Rd2 {[%emt 0:06:29]} Bg4 {[%emt 0:00:57]} 27. Nd6 {[%emt 0:00:56]} b6 {[%emt 0:01:51]} 28. a4 {[%emt 0:01:04]} Nf6 {[%emt 0:01:18]} 29. a5 {[%emt 0:01:51]} bxa5 {[%emt 0:01:18]} 30. bxa5 {[%emt 0:00:06]} Rb8 {[%emt 0:01:05]} 31. a6 {[%emt 0:08:30]} Ra7 {[%emt 0:00:15]} 32. Bb7 {[%emt 0:00:40]} Nd7 $2 {[%emt 0:08:16]} (32... Ne8 {was necessary.}) 33. Rc1 {[%emt 0:00:12]} Be6 {[%emt 0:01:00]} 34. Rc8 {[%emt 0:04:05]} Kf6 {[%emt 0:02:31]} 35. Ne4+ {[%emt 0:04:26]} Ke7 {[%emt 0:00:33] [#]} 36. Rxd7+ $18 {[%emt 0:00:51] Remove Defender} 1-0

[Event "Fredericia WIM 2019"]
[Site "Fredericia"]
[Date "2019.06.02"]
[Round "9.6"]
[White "Stolberg-Rohr, Thomine"]
[Black "Kanakova, Natalie"]
[Result "0-1"]
[ECO "B38"]
[WhiteElo "2025"]
[BlackElo "2205"]
[Annotator "ChessBase"]
[PlyCount "72"]
[EventDate "2019.05.29"]
[EventType "tourn"]
[EventCountry "DEN"]
[SourceTitle "playchess.com"]
[Source "ChessBase"]
[SourceQuality "1"]
[TimeControl "40/5400+30:1800+30"]

1. e4 {[%emt 0:01:29]} c5 {[%emt 0:00:00]} 2. Nf3 {[%emt 0:00:18]} g6 {[%emt 0:00:07]} 3. d4 {[%emt 0:01:01]} cxd4 {[%emt 0:00:04]} 4. Nxd4 {[%emt 0:00:09]} Nc6 {[%emt 0:00:05]} 5. c4 {[%emt 0:00:36]} Bg7 {[%emt 0:00:16]} 6. Be3 {[%emt 0:00:17]} Nf6 {[%emt 0:00:05]} 7. Nc3 {[%emt 0:00:11]} O-O {[%emt 0:00:40]} 8. Be2 {[%emt 0:00:26]} d6 {[%emt 0:00:17]} 9. O-O {[%emt 0:00:19]} Bd7 {[%emt 0:00:36]} 10. f3 {[%emt 0:01:36]} Nxd4 {[%emt 0:00:52]} 11. Bxd4 {[%emt 0:00:12]} Bc6 {[%emt 0:00:12]} 12. b4 {[%emt 0:01:51]} b6 {[%emt 0:03:57]} 13. Qd2 {[%emt 0:01:10]} Nd7 {[%emt 0:07:10]} 14. Bxg7 {[%emt 0:01:04]} Kxg7 {[%emt 0:00:04]} 15. a4 {[%emt 0:03:52]} a5 {[%emt 0:01:17]} 16. b5 {[%emt 0:22:21]} Bb7 {[%emt 0:00:06]} 17. Nd5 {[%emt 0:00:24]} Rc8 {[%emt 0:04:50]} 18. Ra3 {[%emt 0:03:33]} Bxd5 {[%emt 0:06:09]} 19. Qxd5 {[%emt 0:07:03]} Rc5 {[%emt 0:01:29]} 20. Qd4+ {[%emt 0:01:10]} Nf6 {[%emt 0:02:26]} 21. f4 {[%emt 0:06:19]} e5 {[%emt 0:11:33]} 22. Qe3 {[%emt 0:03:18]} exf4 {[%emt 0:04:37]} 23. Rxf4 {[%emt 0:01:22]} Nd7 {[%emt 0:03:26]} 24. Qd4+ {[%emt 0:14:10]} Ne5 {[%emt 0:00:14]} 25. Rf1 {[%emt 0:02:05]} Qe7 {[%emt 0:03:09]} 26. Raf3 {[%emt 0:08:57]} f6 {[%emt 0:01:41]} 27. Rc3 {[%emt 0:03:11]} Re8 {[%emt 0:02:54]} 28. Rc2 {[%emt 0:03:56]} Qe6 {[%emt 0:04:24]} 29. Rd1 {[%emt 0:02:23]} Rd8 {[%emt 0:05:01]} 30. Rc3 {[%emt 0:01:30]} Nf7 {[%emt 0:02:03]} 31. Rf1 {[%emt 0:02:28]} Qe5 {[%emt 0:09:28]} 32. Qe3 {[%emt 0:03:31]} Re8 {[%emt 0:02:17]} 33. Bf3 {[%emt 0:01:44]} d5 {[%emt 0:00:56]} 34. Qd2 {[%emt 0:01:03]} dxe4 {[%emt 0:01:43]} 35. Re1 {[%emt 0:01:11]} Rd8 {[%emt 0:01:02]} 36. Qc2 {[%emt 0:01:10]} Qd4+ {[%emt 0:00:15]} 0-1

[Event "Fredericia WIM 2019"]
[Site "Fredericia"]
[Date "2019.06.02"]
[Round "9.7"]
[White "Kubicka, Anna"]
[Black "Sahl, Sheila Barth"]
[Result "1/2-1/2"]
[ECO "B01"]
[WhiteElo "2142"]
[BlackElo "2127"]
[Annotator "ChessBase"]
[PlyCount "63"]
[EventDate "2019.05.29"]
[EventType "tourn"]
[EventCountry "DEN"]
[SourceTitle "playchess.com"]
[Source "ChessBase"]
[SourceQuality "1"]
[TimeControl "40/5400+30:1800+30"]

1. e4 {[%emt 0:00:00]} d5 {[%emt 0:00:00]} 2. exd5 {[%emt 0:00:00]} Qxd5 {[%emt 0:00:00]} 3. Nc3 {[%emt 0:00:00]} Qd8 {[%emt 0:00:00]} 4. d4 {[%emt 0:00:21]} Nf6 {[%emt 0:00:03]} 5. Bc4 {[%emt 0:00:20]} Bg4 {[%emt 0:01:29]} 6. f3 {[%emt 0:01:13]} Bf5 {[%emt 0:00:27]} 7. Nge2 {[%emt 0:01:07]} c6 {[%emt 0:00:54]} 8. Ng3 {[%emt 0:02:58]} Bg6 {[%emt 0:00:31]} 9. Nce4 {[%emt 0:07:25]} e6 {[%emt 0:00:46]} 10. Bg5 {[%emt 0:01:24]} Nbd7 {[%emt 0:00:53]} 11. O-O {[%emt 0:04:44]} Be7 {[%emt 0:02:46]} 12. Nxf6+ {[%emt 0:01:34]} Bxf6 {[%emt 0:01:36]} 13. Bxf6 {[%emt 0:00:14]} Nxf6 {[%emt 0:00:16]} 14. c3 {[%emt 0:00:16]} Qc7 {[%emt 0:05:56]} 15. Qe2 {[%emt 0:02:07]} Nd5 {[%emt 0:01:12]} 16. Bxd5 {[%emt 0:01:56]} cxd5 {[%emt 0:00:04]} 17. Qb5+ {[%emt 0:00:13]} Qd7 {[%emt 0:00:44]} 18. Qc5 {[%emt 0:11:06]} b6 {[%emt 0:03:46]} 19. Qa3 {[%emt 0:00:18]} h5 {[%emt 0:05:01]} 20. Rf2 {[%emt 0:02:58]} h4 {[%emt 0:01:10]} 21. Ne2 {[%emt 0:00:07]} Qe7 {[%emt 0:00:37]} 22. Qxe7+ {[%emt 0:01:02]} Kxe7 {[%emt 0:00:03]} 23. Re1 {[%emt 0:01:39]} Kd6 {[%emt 0:01:13]} 24. g4 {[%emt 0:09:41]} hxg3 {[%emt 0:00:58]} 25. hxg3 {[%emt 0:00:01]} Rh6 {[%emt 0:03:59]} 26. Rh2 {[%emt 0:00:10]} Rxh2 {[%emt 0:00:49]} 27. Kxh2 {[%emt 0:00:02]} Bd3 {[%emt 0:00:37]} 28. Nf4 {[%emt 0:02:05]} Bc4 {[%emt 0:00:07]} 29. a3 {[%emt 0:01:53]} a5 {[%emt 0:07:34]} 30. Kg2 {[%emt 0:00:35]} b5 {[%emt 0:01:04]} 31. Ra1 {[%emt 0:01:13]} Kc6 {[%emt 0:14:25]} 32. Nh5 {[%emt 0:02:10]} 1/2-1/2

[Event "Fredericia WIM 2019"]
[Site "Fredericia"]
[Date "2019.06.02"]
[Round "9.8"]
[White "Keetman, Maaike"]
[Black "Mayrhuber, Nikola"]
[Result "1/2-1/2"]
[ECO "C07"]
[WhiteElo "2146"]
[BlackElo "1985"]
[Annotator "ChessBase"]
[PlyCount "78"]
[EventDate "2019.05.29"]
[EventType "tourn"]
[EventCountry "DEN"]
[SourceTitle "playchess.com"]
[Source "ChessBase"]
[SourceQuality "1"]
[TimeControl "40/5400+30:1800+30"]

1. e4 {[%emt 0:00:00]} e6 {[%emt 0:00:00]} 2. d4 {[%emt 0:00:00]} d5 {[%emt 0:00:00]} 3. Nd2 {[%emt 0:00:00]} c5 {[%emt 0:00:00]} 4. exd5 {[%emt 0:00:30]} Qxd5 {[%emt 0:00:01]} 5. Ngf3 {[%emt 0:00:09]} cxd4 {[%emt 0:00:07]} 6. Bc4 {[%emt 0:00:10]} Qd7 {[%emt 0:00:16]} 7. O-O {[%emt 0:00:42]} Nc6 {[%emt 0:00:08]} 8. Nb3 {[%emt 0:00:09]} a6 {[%emt 0:00:16]} 9. Nbxd4 {[%emt 0:00:43]} Nxd4 {[%emt 0:00:09]} 10. Nxd4 {[%emt 0:00:09]} Qc7 {[%emt 0:00:26]} 11. Bb3 {[%emt 0:05:20]} Bd6 {[%emt 0:00:14]} 12. h3 {[%emt 0:03:46]} Ne7 {[%emt 0:01:17]} 13. Re1 {[%emt 0:05:38]} O-O {[%emt 0:03:05]} 14. c3 {[%emt 0:02:16]} b6 {[%emt 0:04:43]} 15. Qh5 {[%emt 0:14:06]} Ng6 {[%emt 0:02:31]} 16. Bc2 {[%emt 0:05:37]} Bb7 {[%emt 0:03:20]} 17. Nf3 {[%emt 0:08:01]} Bxf3 {[%emt 0:08:43]} 18. Qxf3 {[%emt 0:00:17]} Bh2+ {[%emt 0:04:19]} 19. Kh1 {[%emt 0:00:29]} Be5 {[%emt 0:00:41]} 20. Bg5 {[%emt 0:09:41]} b5 {[%emt 0:04:33]} 21. Rac1 {[%emt 0:17:16]} Bf4 {[%emt 0:04:59]} 22. Bxf4 {[%emt 0:03:10]} Qxf4 {[%emt 0:00:13]} 23. Bxg6 {[%emt 0:01:57]} Qxf3 {[%emt 0:00:32]} 24. Bxh7+ {[%emt 0:00:11]} Kxh7 {[%emt 0:00:07]} 25. gxf3 {[%emt 0:00:05]} Kg6 {[%emt 0:02:52]} 26. Rcd1 {[%emt 0:04:32]} Rh8 {[%emt 0:00:59]} 27. Kg2 {[%emt 0:00:19]} Rh5 {[%emt 0:01:09]} 28. f4 {[%emt 0:05:56]} Rah8 {[%emt 0:04:21]} 29. Rd3 {[%emt 0:02:14]} Rf5 {[%emt 0:02:42]} 30. Re4 {[%emt 0:03:00]} Rh4 {[%emt 0:02:35]} 31. Rg3+ {[%emt 0:02:33]} Kf6 {[%emt 0:00:43]} 32. Rg4 {[%emt 0:00:31]} Rh8 {[%emt 0:01:06]} 33. Rd4 {[%emt 0:00:40]} Rfh5 {[%emt 0:04:28]} 34. Rg3 {[%emt 0:00:23]} Rf5 {[%emt 0:01:03]} 35. Rd6 {[%emt 0:02:49]} a5 {[%emt 0:01:12]} 36. Ra6 {[%emt 0:00:59]} b4 {[%emt 0:01:08]} 37. cxb4 {[%emt 0:02:04]} axb4 {[%emt 0:00:05]} 38. Rb6 {[%emt 0:01:06]} Rxf4 {[%emt 0:02:59]} 39. Rg4 {[%emt 0:00:13]} Rh4 {[%emt 0:00:55] Kf3 Ke5+ Ke4+} 1/2-1/2